bitfinex-derivatives/quotes_SOLF0:USTF0_20241101
["timestamp","ask_amount","ask_price","bid_price","bid_amount"]
[1730494993653,14.59182243,165.28,165.19,1.2657]
[1730494993861,3.0273,165.25,165.22,3.0278]
[1730495001296,3.0277,165.23,165.2,3.0281]
[1730495001467,11.63182243,165.26,165.17,1.2781]
[1730495001662,11.63182243,165.26,165.2,3.0282]
[1730495001663,3.0277,165.23,165.2,3.0282]
[1730495003169,11.63182243,165.26,165.22,3.0277]
[1730495003668,3.0275,165.24,165.22,3.0277]
[1730495003865,3.0275,165.24,165.21,3.028]
[1730495006569,3.0275,165.24,165.22,3.0279]
[1730495017083,7.44384748,165.23,165.22,3.0279]
[1730495017287,10.47154748,165.23,165.21,3.0281]
[1730495017989,7.44384748,165.23,165.21,3.0281]
[1730495020693,10.47154748,165.23,165.21,3.0281]
[1730495020895,2.96,165.28,165.23,3.0276]
[1730495020896,7.44384748,165.25,165.23,3.0276]
[1730495021291,10.47134748,165.25,165.23,3.0276]
[1730495021789,10.47134748,165.25,165.22,3.0278]
[1730495023606,10.47164748,165.23,165.19,7.44384748]
[1730495024102,7.44384748,165.23,165.2,3.0281]
[1730495024995,3.028,165.22,165.2,3.0281]
[1730495025497,10.47164748,165.23,165.2,3.0281]
[1730495026292,10.47184748,165.22,165.19,3.0283]
[1730495026593,2.94,165.24,165.19,7.44384748]
[1730495026796,7.44384748,165.25,165.19,7.44384748]
[1730495027092,3.0275,165.24,165.22,3.0278]
[1730495029797,3.0278,165.23,165.21,3.028]
[1730495031196,10.47144748,165.24,165.22,3.0279]
[1730495031898,3.028,165.22,165.2,3.0281]
[1730495034501,7.44384748,165.24,165.19,3.0283]
[1730495034502,3.0278,165.23,165.19,3.0283]
[1730495034806,7.44384748,165.22,165.16,7.44384748]
[1730495036307,3.0282,165.21,165.19,3.0284]
[1730495040505,3.0281,165.22,165.19,3.0283]
[1730495040723,7.44384748,165.23,165.19,3.0283]
[1730495042509,3.028,165.22,165.19,3.0283]
[1730495043113,7.44384748,165.24,165.19,7.44384748]
[1730495043308,7.44384748,165.26,165.21,7.44384748]
[1730495044015,3.0273,165.25,165.19,7.44384748]
[1730495044604,3.0273,165.25,165.22,3.0277]
[1730495044803,10.47114748,165.25,165.22,3.0277]
[1730495045312,3.0276,165.24,165.22,3.0277]
[1730495046317,3.0277,165.23,165.21,3.028]
[1730495046510,7.44384748,165.25,165.21,3.028]
[1730495047210,10.47134748,165.25,165.22,3.0278]
[1730495047512,7.44384748,165.25,165.22,3.0278]
[1730495048614,3.0276,165.24,165.21,3.0279]
[1730495048803,3.0276,165.24,165.19,7.44384748]
[1730495050410,3.0276,165.24,165.22,3.0278]
[1730495050717,3.0274,165.25,165.19,7.44384748]
[1730495050916,3.0274,165.25,165.23,3.0276]
[1730495051319,3.0274,165.25,165.23,3.0277]
[1730495052310,10.47114748,165.26,165.21,3.028]
[1730495052516,10.47114748,165.26,165.19,7.44384748]
[1730495053421,10.47114748,165.26,165.23,3.0276]
[1730495053813,7.44384748,165.26,165.19,7.44384748]
[1730495054017,3.0276,165.24,165.19,7.44384748]
[1730495054318,7.44384748,165.26,165.19,7.44384748]
[1730495054909,3.0274,165.25,165.23,3.0276]
[1730495055107,7.44384748,165.26,165.23,3.0276]
[1730495055520,10.47114748,165.26,165.23,3.0276]
[1730495056619,3.0275,165.24,165.22,3.0278]
[1730495057125,7.44384748,165.26,165.2,7.44384748]
[1730495057328,2.94,165.27,165.22,7.44384748]
[1730495057329,7.44384748,165.27,165.22,7.44384748]
[1730495057615,7.44384748,165.29,165.24,7.44384748]
[1730495057827,10.47044748,165.29,165.24,7.44384748]
[1730495058034,10.38384748,165.3,165.25,1.3819]
[1730495058530,10.47034748,165.3,165.28,3.0267]
[1730495058711,7.44384748,165.31,165.26,7.44384748]
[1730495059808,7.44384748,165.31,165.29,3.0265]
[1730495060421,7.44384748,165.3,165.28,3.0268]
[1730495060621,7.44384748,165.29,165.28,3.0268]
[1730495061219,7.44384748,165.3,165.28,3.0268]
[1730495061911,7.44384748,165.31,165.29,3.0265]
[1730495062520,7.44384748,165.31,165.26,7.44384748]
[1730495062715,7.44384748,165.33,165.28,7.44384748]
[1730495063025,7.44384748,165.36,165.35,3.0255]
[1730495063514,2.94,165.39,165.32,1.2636]
[1730495063515,7.44384748,165.39,165.34,7.44384748]
[1730495063719,7.44384748,165.39,165.38,3.0248]
[1730495064721,7.44384748,165.41,165.38,3.0248]
[1730495065327,10.38384748,165.43,165.37,7.44384748]
[1730495065536,7.44384748,165.43,165.37,7.44384748]
[1730495065916,7.44384748,165.41,165.38,3.0249]
[1730495066229,3.0249,165.39,165.33,8.71754748]
[1730495066433,7.44384748,165.37,165.33,8.71754748]
[1730495067132,7.44384748,165.37,165.35,3.0254]
[1730495068232,10.46924748,165.36,165.33,3.0258]
[1730495068821,7.44384748,165.34,165.32,1.2636]
[1730495069024,7.44384748,165.34,165.28,7.44384748]
[1730495069219,7.44384748,165.34,165.28,8.78574748]
[1730495069424,10.46954748,165.34,165.31,3.0262]
[1730495070133,10.46954748,165.34,165.28,8.78574748]
[1730495070333,10.46954748,165.34,165.3,3.0264]
[1730495071529,10.46954748,165.34,165.31,3.0262]
[1730495072319,7.44384748,165.34,165.31,3.0262]
[1730495072522,7.44384748,165.34,165.32,3.0259]
[1730495072735,7.44384748,165.35,165.32,3.0259]
[1730495072932,10.46934748,165.35,165.32,3.0259]
[1730495073531,7.44384748,165.35,165.3,7.44384748]
[1730495073736,7.44384748,165.35,165.33,3.0258]
[1730495075431,3.0253,165.36,165.33,3.0258]
[1730495075432,10.46914748,165.36,165.33,3.0258]
[1730495076536,7.44384748,165.35,165.33,3.0258]
[1730495080244,7.44384748,165.35,165.3,7.44384748]
[1730495080435,2.94,165.38,165.31,7.44384748]
[1730495080436,7.44384748,165.37,165.31,7.44384748]
[1730495080829,7.44384748,165.39,165.33,7.44384748]
[1730495081031,7.44384748,165.39,165.34,1.2646]
[1730495081431,10.46874748,165.39,165.36,3.0253]
[1730495082131,7.44384748,165.4,165.36,7.44384748]
[1730495082332,7.44384748,165.42,165.36,7.44384748]
[1730495082637,3.0245,165.41,165.38,3.0248]
[1730495084232,3.0246,165.4,165.38,3.0248]
[1730495086753,49.9211319,165.45,165.42,3.0241]
[1730495086754,3.0237,165.45,165.42,3.0241]
[1730495087042,7.44384748,165.47,165.41,7.44384748]
[1730495087239,10.46704748,165.48,165.45,3.0237]
[1730495087942,10.46704748,165.48,165.42,7.44384748]
[1730495087943,7.44384748,165.48,165.42,7.44384748]
[1730495088243,3.023,165.49,165.46,3.0235]
[1730495088748,7.44384748,165.5,165.44,7.44384748]
[1730495088943,10.46664748,165.5,165.47,3.0232]
[1730495090439,7.44384748,165.48,165.45,3.0236]
[1730495091239,10.46704748,165.48,165.45,3.0236]
[1730495091441,7.44384748,165.54,165.5,3.0227]
[1730495091640,7.44384748,165.54,165.48,7.44384748]
[1730495091833,3.0217,165.56,165.5,7.44384748]
[1730495092039,7.44384748,165.57,165.52,3.0223]
[1730495092253,7.44384748,165.57,165.5,7.44384748]
[1730495092455,3.0218,165.56,165.52,3.0223]
[1730495093037,3.0218,165.56,165.49,11.61566549]
[1730495093246,3.0218,165.56,165.52,3.0223]
[1730495094445,3.0218,165.56,165.49,11.61566549]
[1730495094446,3.0218,165.56,165.53,3.0221]
[1730495095150,14.53566549,165.59,165.49,11.61566549]
[1730495095352,3.022,165.55,165.51,3.0225]
[1730495096246,14.53566549,165.59,165.48,1.3871]
[1730495096247,11.61566549,165.57,165.48,1.3871]
[1730495096853,3.0223,165.53,165.5,3.0227]
[1730495097155,11.61566549,165.57,165.48,1.3871]
[1730495097351,3.0224,165.53,165.49,3.0228]
[1730495097544,11.61566549,165.57,165.49,3.0228]
[1730495098553,3.0225,165.52,165.49,3.0228]
[1730495102254,3.0222,165.54,165.49,11.61566549]
[1730495103060,3.0222,165.54,165.51,3.0226]
[1730495104154,2.92,165.55,165.51,3.0226]
[1730495104459,3.0222,165.53,165.51,3.0226]
[1730495104654,2.92,165.55,165.52,3.0223]
[1730495104861,3.022,165.54,165.52,3.0223]
[1730495105065,2.94,165.58,165.51,11.61566549]
[1730495105361,3.0218,165.56,165.53,3.0222]
[1730495106360,3.0219,165.55,165.53,3.0222]
[1730495106653,2.94,165.58,165.54,3.0219]
[1730495106853,3.0216,165.57,165.54,3.0219]
[1730495107255,2.94,165.58,165.53,3.0222]
[1730495107458,3.0218,165.56,165.53,3.0222]
[1730495109257,2.94,165.58,165.53,3.0222]
[1730495109567,14.53566549,165.61,165.53,11.61566549]
[1730495110067,14.53566549,165.61,165.55,3.0217]
[1730495110068,3.0213,165.58,165.55,3.0217]
[1730495110770,14.53566549,165.61,165.55,3.0217]
[1730495110964,3.0215,165.57,165.55,3.0217]
[1730495111160,11.61566549,165.61,165.56,3.0216]
[1730495111663,11.61566549,165.61,165.54,1.3799]
[1730495111664,3.0214,165.58,165.55,3.0218]
[1730495111963,3.0214,165.58,165.54,1.3799]
[1730495112264,2.92,165.62,165.54,1.3799]
[1730495112456,3.0212,165.59,165.56,3.0215]
[1730495113067,61.48305493,165.63,165.54,1.3799]
[1730495113377,64.40305493,165.63,165.55,11.61566549]
[1730495113561,61.48305493,165.63,165.55,11.61566549]
[1730495113771,2.92,165.64,165.55,11.61566549]
[1730495113960,2.92,165.64,165.57,11.61566549]
[1730495114159,3.0207,165.62,165.59,3.0209]
[1730495114674,7.4277801,165.61,165.56,7.4277801]
[1730495114961,7.4277801,165.61,165.56,3.0215]
[1730495115555,7.4277801,165.61,165.56,10.4492801]
[1730495116265,3.0212,165.59,165.56,10.4492801]
[1730495117271,7.4277801,165.58,165.54,1.3799]
[1730495117666,7.4277801,165.58,165.52,8.7946801]
[1730495117866,3.0218,165.55,165.52,11.8169801]
[1730495118166,7.4277801,165.56,165.52,3.0223]
[1730495118473,3.0219,165.55,165.52,3.0223]
[1730495119369,3.0219,165.55,165.51,7.4277801]
[1730495119370,3.0219,165.55,165.53,3.0222]
[1730495120969,3.0219,165.55,165.52,3.0223]
[1730495123366,3.0219,165.55,165.52,3.0224]
[1730495128767,3.0219,165.55,165.49,15.88134335]
[1730495128768,3.0219,165.55,165.5,3.0226]
[1730495128966,3.0219,165.55,165.49,15.88134335]
[1730495129264,3.0219,165.55,165.52,3.0223]
[1730495139277,5.96085977,165.6,165.5,3.0227]
[1730495139278,3.0225,165.52,165.5,3.0227]
[1730495140381,12.91714335,165.58,165.49,1.345]
[1730495140382,3.0223,165.53,165.51,3.0225]
[1730495142678,3.0221,165.54,165.51,3.0226]
[1730495144081,7.43590186,165.55,165.51,3.0226]
[1730495145390,3.0222,165.54,165.51,3.0226]
[1730495148291,3.0222,165.54,165.52,3.0224]
[1730495169801,7.43590186,165.57,165.49,1.345]
[1730495170104,3.0219,165.55,165.53,3.0222]
[1730495170748,3.0218,165.56,165.54,3.022]
[1730495171039,7.43590186,165.59,165.53,7.43590186]
[1730495173340,3.0217,165.56,165.54,3.0219]
[1730495174738,10.45760186,165.56,165.54,3.0219]
[1730495175735,3.0221,165.54,165.52,3.0224]
[1730495177334,3.02181472,165.6,165.5,3.0227]
[1730495177335,3.0225,165.52,165.5,3.0227]
[1730495179440,7.43590186,165.55,165.5,3.0227]
[1730495179640,3.0223,165.53,165.5,3.0227]
[1730495180743,10.45820186,165.53,165.5,3.0227]
[1730495180944,3.0215,165.58,165.54,3.0219]
[1730495181150,7.43590186,165.6,165.55,7.43590186]
[1730495182436,3.0214,165.58,165.55,10.45770186]
[1730495183433,7.43590186,165.59,165.53,7.43590186]
[1730495183745,7.43590186,165.57,165.52,7.43590186]
[1730495184242,3.0218,165.56,165.53,3.0221]
[1730495188243,3.0218,165.56,165.53,10.45800186]
[1730495189932,3.0218,165.56,165.54,3.022]
[1730495190449,8.07909533,165.62,165.55,3.0217]
[1730495190450,3.0214,165.58,165.55,3.0217]
[1730495191045,3.0215,165.57,165.55,3.0217]
[1730495200223,15.51768706,165.63,165.57,3.0213]
[1730495200518,7.43590186,165.63,165.58,7.43590186]
[1730495200822,3.0211,165.6,165.58,10.45720186]
[1730495204911,3.021,165.6,165.58,10.45720186]
[1730495207525,3.0207,165.62,165.59,10.45700186]
[1730495207724,7.43590186,165.65,165.59,7.43590186]
[1730495207926,0.9482842,165.64,165.59,7.43590186]
[1730495208519,3.0209,165.61,165.59,7.43590186]
[1730495210220,3.0209,165.61,165.59,10.45690186]
[1730495211726,7.43590186,165.65,165.59,7.43590186]
[1730495211926,0.94828598,165.64,165.59,7.43590186]
[1730495212523,3.0209,165.61,165.59,10.45700186]
[1730495212725,7.43590186,165.65,165.59,7.43590186]
[1730495213436,7.43590186,165.65,165.6,3.0208]
[1730495214320,3.0206,165.62,165.6,3.0208]
[1730495216232,3.0206,165.62,165.61,7.43590186]
[1730495218834,13.35739956,165.66,165.61,7.43590186]
[1730495218835,3.0206,165.63,165.61,7.43590186]
[1730495220749,3.0206,165.63,165.61,10.45660186]
[1730495221141,3.0206,165.63,165.61,7.43590186]
[1730495221631,7.43590186,165.67,165.61,7.43590186]
[1730495221838,3.02,165.66,165.64,7.43590186]
[1730495222030,10.35590186,165.69,165.64,7.43590186]
[1730495222237,0.94853215,165.68,165.64,7.43590186]
[1730495222441,3.02,165.65,165.64,7.43590186]
[1730495224636,7.43590186,165.66,165.6,7.43590186]
[1730495224852,3.0207,165.62,165.6,7.43590186]
[1730495226039,3.0207,165.62,165.6,10.45680186]
[1730495230555,7.43590186,165.66,165.6,7.43590186]
[1730495230743,0.94852623,165.65,165.6,7.43590186]
[1730495231351,3.0203,165.64,165.6,7.43590186]
[1730495231644,10.35590186,165.64,165.58,7.43590186]
[1730495232647,3.0205,165.63,165.58,7.43590186]
[1730495232849,10.35590186,165.64,165.58,7.43590186]
[1730495234054,3.0208,165.61,165.58,10.45700186]
[1730495234358,3.0208,165.61,165.58,7.43590186]
[1730495234542,3.0208,165.61,165.58,10.45710186]
[1730495234845,3.0208,165.61,165.58,7.43590186]
[1730495235242,3.0207,165.62,165.59,3.0211]
[1730495239053,3.0207,165.62,165.58,7.43590186]
[1730495239054,7.43590186,165.63,165.58,7.43590186]
[1730495239253,7.43590186,165.6,165.55,7.43590186]
[1730495239756,7.43590186,165.6,165.54,7.43590186]
[1730495240147,7.43590186,165.62,165.57,7.43590186]
[1730495240348,10.29648089,165.7,165.52,4.2802]
[1730495240349,2.92,165.67,165.61,7.43590186]
[1730495240545,2.92,165.67,165.63,7.43590186]
[1730495240741,3.0201,165.65,165.63,7.43590186]
[1730495240949,2.92,165.67,165.63,7.43590186]
[1730495241149,3.0202,165.64,165.63,7.43590186]
[1730495253070,2.92,165.67,165.63,7.43590186]
[1730495253259,3.0201,165.65,165.63,7.43590186]
[1730495255854,3.0201,165.65,165.63,10.45620186]
[1730495256463,3.0199,165.66,165.63,10.45620186]
[1730495256870,3.0199,165.66,165.65,7.43590186]
[1730495257762,3.0197,165.67,165.65,7.43590186]
[1730495257958,2.92,165.7,165.66,7.43590186]
[1730495258260,0.94875455,165.69,165.66,7.43590186]
[1730495258664,3.0196,165.68,165.66,7.43590186]
[1730495261174,7.8396,165.68,165.66,7.43590186]
[1730495262658,7.8396,165.68,165.64,7.43590186]
[1730495262659,4.82,165.68,165.64,7.43590186]
[1730495263282,3.0198,165.67,165.64,10.45600186]
[1730495264563,3.0198,165.67,165.65,10.45590186]
[1730495267064,4.82,165.68,165.65,7.43590186]
[1730495267380,4.82,165.68,165.67,7.43590186]
[1730495268074,4.82,165.68,165.67,10.45560186]
[1730495268574,4.82,165.68,165.67,7.43590186]
[1730495275587,4.82,165.68,165.64,7.43590186]
[1730495276378,3.02,165.66,165.64,7.43590186]
[1730495277478,3.02,165.66,165.64,10.45610186]
[1730495285772,4.82,165.65,165.64,10.45610186]
[1730495286176,4.82,165.65,165.64,7.43590186]
[1730495286491,7.84,165.65,165.64,7.43590186]
[1730495291685,4.82,165.65,165.64,7.43590186]
[1730495293784,4.82,165.65,165.64,10.45610186]
[1730495299100,7.63,165.65,165.64,10.45610186]
[1730495302270,3.0192,165.7,165.64,7.43590186]
[1730495302404,2.92,165.72,165.67,7.43590186]
[1730495302596,0.94773897,165.71,165.67,7.43590186]
[1730495302906,3.0193,165.69,165.67,10.45550186]
[1730495303905,2.92,165.72,165.67,7.43590186]
[1730495304103,7.8393,165.69,165.67,3.0196]
[1730495304295,7.8393,165.69,165.68,7.43590186]
[1730495304500,4.82,165.69,165.68,7.43590186]
[1730495305303,4.82,165.69,165.68,10.45540186]
[1730495308006,4.82,165.69,165.68,7.43590186]
[1730495309302,4.82,165.69,165.68,10.45540186]
[1730495310112,4.82,165.69,165.68,7.43590186]
[1730495312513,4.82,165.69,165.68,10.45540186]
[1730495312805,4.82,165.69,165.68,7.43590186]
[1730495314606,7.8393,165.69,165.68,7.43590186]
[1730495317008,3.0185,165.74,165.71,3.0188]
[1730495317200,3.0185,165.74,165.68,7.43590186]
[1730495317201,7.43590186,165.77,165.72,7.43590186]
[1730495317400,0.94855338,165.76,165.71,7.43590186]
[1730495317597,3.0189,165.72,165.71,7.43590186]
[1730495318104,7.43590186,165.75,165.69,7.43590186]
[1730495318305,3.0188,165.72,165.69,7.43590186]
[1730495318504,3.0188,165.72,165.71,7.43590186]
[1730495320416,8.38434021,165.72,165.66,7.43590186]
[1730495320612,7.43590186,165.71,165.66,7.43590186]
[1730495323310,3.0192,165.7,165.66,7.43590186]
[1730495323515,7.43590186,165.71,165.66,7.43590186]
[1730495323816,3.0196,165.68,165.66,7.43590186]
[1730495324415,7.43590186,165.67,165.61,7.43590186]
[1730495324715,7.43590186,165.66,165.61,7.43590186]
[1730495325712,3.0203,165.64,165.61,10.45650186]
[1730495327022,7.43590186,165.67,165.61,7.43590186]
[1730495328022,3.0202,165.65,165.62,3.0205]
[1730495328518,3.0202,165.65,165.63,10.45620186]
[1730495329921,3.0202,165.65,165.63,7.43590186]
[1730495330421,3.0202,165.65,165.62,3.0204]
[1730495332119,3.0202,165.65,165.63,3.0203]
[1730495340457,3.0202,165.64,165.62,3.0206]
[1730495347421,3.0202,165.64,165.61,7.43590186]
[1730495347422,7.43590186,165.67,165.61,7.43590186]
[1730495347647,8.70970186,165.68,165.63,7.43590186]
[1730495348135,3.0199,165.66,165.64,3.0201]
[1730495348724,3.0199,165.66,165.63,10.45620186]
[1730495349523,3.41,165.65,165.63,10.45620186]
[1730495352432,6.43,165.65,165.63,10.45620186]
[1730495363755,6.43,165.65,165.63,3.0203]
[1730495370760,6.43,165.65,165.58,72.66440488]
[1730495370761,7.43590186,165.64,165.56,7.43590186]
[1730495371061,7.43590186,165.62,165.57,6.00092935]
[1730495371354,7.43590186,165.6,165.55,8.79880186]
[1730495371556,7.43590186,165.6,165.56,6.00019897]
[1730495371748,3.0213,165.58,165.57,6.00019897]
[1730495371952,7.43590186,165.6,165.56,3.0216]
[1730495372358,3.0213,165.59,165.56,3.0216]
[1730495373560,7.43590186,165.6,165.55,10.45770186]
[1730495373762,7.43590186,165.59,165.55,3.0218]
[1730495375266,3.0215,165.57,165.55,3.0218]
[1730495375763,6.4314,165.58,165.55,3.0218]
[1730495376463,3.0216,165.57,165.54,10.45780186]
[1730495376674,7.43590186,165.57,165.52,7.43590186]
[1730495377058,3.0219,165.55,165.52,3.0224]
[1730495377258,3.0219,165.55,165.51,7.43590186]
[1730495378069,3.0219,165.55,165.53,3.0222]
[1730495378266,3.0225,165.52,165.48,7.43590186]
[1730495378467,7.43590186,165.52,165.47,7.43590186]
[1730495378675,7.43590186,165.52,165.49,3.0228]
[1730495383173,7.43590186,165.54,165.49,7.43590186]
[1730495383562,7.43590186,165.54,165.5,3.0226]
[1730495384168,10.45800186,165.54,165.5,3.0226]
[1730495388981,3.4,165.53,165.5,3.0226]
[1730495398515,10.83590186,165.53,165.5,3.0226]
[1730495398703,13.85810186,165.53,165.5,3.0226]
[1730495400306,3.4,165.53,165.52,3.0224]
[1730495420493,13.85810186,165.53,165.51,3.0225]
[1730495420685,10.45810186,165.53,165.51,3.0225]
[1730495421292,10.45810186,165.53,165.5,3.0226]
[1730495422393,3.4,165.52,165.5,3.0226]
[1730495422991,3.4,165.52,165.51,3.0226]
[1730495442719,3.4,165.52,165.51,10.45850186]
[1730495444820,3.4,165.52,165.51,14.59700293]
[1730495449126,3.4,165.52,165.51,14.59820953]
[1730495456825,3.4,165.52,165.51,10.45850186]
[1730495457030,3.4,165.52,165.51,14.59643178]
[1730495457641,10.45690186,165.6,165.58,3.0212]
[1730495457955,3.021,165.6,165.58,3.0212]
[1730495458559,7.43590186,165.63,165.57,7.43590186]
[1730495458748,3.0207,165.62,165.59,7.43590186]
[1730495459359,3.0205,165.63,165.6,3.0209]
[1730495460160,3.0203,165.64,165.62,7.43590186]
[1730495460411,7.43590186,165.66,165.62,7.43590186]
[1730495460747,3.0203,165.64,165.62,7.43590186]
[1730495465558,3.0203,165.64,165.61,3.0207]
[1730495470170,3.0203,165.64,165.58,2.9]
[1730495470171,7.43590186,165.63,165.58,7.43590186]
[1730495470448,6.909,165.67,165.56,7.43590186]
[1730495470449,7.43590186,165.61,165.56,7.43590186]
[1730495470941,10.45670186,165.61,165.58,3.0212]
[1730495471838,7.43590186,165.61,165.58,3.0212]
[1730495472145,7.43590186,165.59,165.56,3.0216]
[1730495472743,7.43590186,165.58,165.53,7.43590186]
[1730495473049,7.43590186,165.57,165.51,83.02335278]
[1730495473246,3.0217,165.56,165.53,3.0221]
[1730495473442,7.43590186,165.57,165.51,83.02335278]
[1730495473639,7.43590186,165.57,165.51,80.12335278]
[1730495473836,3.0219,165.55,165.52,3.0223]
[1730495476149,3.0219,165.55,165.51,80.12335278]
[1730495476342,7.43590186,165.57,165.53,3.0222]
[1730495476647,3.0217,165.56,165.53,3.0222]
[1730495484846,3.0217,165.56,165.52,3.0222]
[1730495485051,3.0217,165.56,165.51,80.12335278]
[1730495485654,3.0217,165.56,165.53,3.0221]
[1730495488757,7.43590186,165.55,165.52,3.0224]
[1730495489346,7.43590186,165.55,165.51,72.68745092]
[1730495489553,10.45810186,165.54,165.51,75.70995092]
[1730495489746,7.43590186,165.54,165.51,75.70995092]
[1730495491054,7.43590186,165.54,165.51,72.68745092]
[1730495491357,3.0223,165.53,165.51,72.68745092]
[1730495491556,7.43590186,165.53,165.5,3.0227]
[1730495491748,7.43590186,165.52,165.44,4.12562483]
[1730495491954,7.43590186,165.48,165.43,7.43590186]
[1730495492354,10.45920186,165.48,165.45,3.0236]
[1730495493159,7.43590186,165.48,165.43,7.43590186]
[1730495493355,7.43590186,165.45,165.4,7.43590186]
[1730495494463,10.45970186,165.45,165.42,3.0242]
[1730495494656,2.9,165.48,165.35,113.59310043]
[1730495494657,7.43590186,165.43,165.36,7.43590186]
[1730495495051,3.0245,165.41,165.38,3.0249]
[1730495495250,10.33590186,165.44,165.39,7.43590186]
[1730495495554,5.924,165.44,165.4,3.0245]
[1730495496753,2.9,165.44,165.4,3.0245]
[1730495496953,3.024,165.43,165.4,3.0245]
[1730495497562,3.0244,165.42,165.38,7.43590186]
[1730495497760,10.46030186,165.42,165.38,7.43590186]
[1730495497965,10.46030186,165.42,165.36,7.43590186]
[1730495498868,10.46030186,165.42,165.38,3.0248]
[1730495499954,7.43590186,165.42,165.38,3.0248]
[1730495500257,3.0244,165.41,165.38,3.0248]
[1730495501365,3.0244,165.41,165.38,10.46070186]
[1730495504361,3.0243,165.42,165.39,3.0247]
[1730495506470,3.0244,165.41,165.39,3.0247]
[1730495507364,49.90054996,165.49,165.4,7.43590186]
[1730495507365,7.43590186,165.46,165.4,7.43590186]
[1730495507570,10.33590186,165.48,165.42,7.43590186]
[1730495507772,3.0238,165.45,165.42,10.46000186]
[1730495508770,3.0238,165.45,165.42,3.0241]
[1730495509473,7.43590186,165.46,165.42,3.0241]
[1730495509661,3.0237,165.45,165.42,3.0241]
[1730495512368,3.024,165.44,165.42,3.0241]
[1730495517868,7.43590186,165.46,165.41,7.43590186]
[1730495518072,10.33590186,165.48,165.43,7.43590186]
[1730495518678,3.0235,165.46,165.44,3.0238]
[1730495519763,3.0235,165.47,165.44,3.0238]
[1730495520169,10.33590186,165.48,165.44,3.0238]
[1730495521481,3.0236,165.46,165.44,3.0239]
[1730495521672,10.33590186,165.48,165.41,7.43590186]
[1730495522177,3.0238,165.45,165.41,7.43590186]
[1730495522678,7.43590186,165.43,165.37,8.76210186]
[1730495522877,3.0244,165.41,165.37,8.76210186]
[1730495523069,10.46030186,165.41,165.37,1.3262]
[1730495523269,10.46030186,165.41,165.38,3.0248]
[1730495523480,7.43590186,165.41,165.36,11.68780186]
[1730495523678,3.0248,165.39,165.36,7.43590186]
[1730495523873,2.9,165.44,165.33,3.0257]
[1730495523874,7.43590186,165.37,165.33,3.0257]
[1730495524067,7.43590186,165.37,165.32,7.43590186]
[1730495524068,3.0255,165.35,165.29,7.43590186]
[1730495524285,3.0255,165.35,165.3,2.9]
[1730495525073,7.43590186,165.36,165.3,2.9]
[1730495525272,10.46130186,165.36,165.31,7.43590186]
[1730495525473,3.0254,165.36,165.32,7.43590186]
[1730495526285,3.0254,165.36,165.33,3.0257]
[1730495528077,3.0249,165.39,165.36,3.0252]
[1730495540690,7.43590186,165.42,165.37,7.43590186]
[1730495540997,7.43590186,165.44,165.39,7.43590186]
[1730495542396,3.0241,165.43,165.39,7.43590186]
[1730495542700,7.43590186,165.44,165.39,7.43590186]
[1730495543302,3.024,165.44,165.41,3.0243]
[1730495544284,1.3943,165.48,165.42,7.43590186]
[1730495544285,7.43590186,165.47,165.42,7.43590186]
[1730495544595,10.33590186,165.48,165.44,7.43590186]
[1730495544911,7.43590186,165.48,165.42,7.43590186]
[1730495545604,3.0235,165.46,165.43,3.024]
[1730495549094,10.45930186,165.47,165.44,3.0237]
[1730495549901,3.0235,165.46,165.44,3.0237]
[1730495551406,3.0235,165.46,165.43,3.024]
[1730495551600,3.0235,165.46,165.41,7.43590186]
[1730495552011,3.0235,165.46,165.43,3.0239]
[1730495558415,3.0235,165.46,165.41,7.43590186]
[1730495558622,3.0235,165.46,165.44,3.0239]
[1730495565621,7.43590186,165.48,165.43,7.43590186]
[1730495565816,3.0231,165.48,165.46,3.0234]
[1730495568318,3.0237,165.45,165.43,10.45990186]
[1730495568522,3.0237,165.45,165.43,3.024]
[1730495571439,3.024,165.44,165.41,3.0243]
[1730495572238,3.0241,165.43,165.41,3.0243]
[1730495578041,3.0241,165.43,165.4,10.46030186]
[1730495579143,3.0241,165.43,165.41,3.0244]
[1730495579341,3.0241,165.43,165.4,7.43590186]
[1730495580039,3.0241,165.43,165.4,10.46040186]